Cogmind - Beta 15 @@@ ROGUE MODE // 2025.06.18 @ 15:53:59 Player: 7604 Result: Destroyed by Y-45 Defender with Heavy Assault Rifle Performance ------------- Evolutions (0) 0 Regions Visited (3) 600 Robots Destroyed (42) 210 Value Destroyed (1023) 1023 Prototype IDs (15) 300 Alien Tech Used (0) 0 Bonus (-45) -45 TOTAL SCORE: 2088 Bonus ------- Friendly Fire -45 Cogmind --------- Core Integrity 0/250 Matter 197/300 Energy 198/200 System Corruption 0% Temperature Cool (0) Movement Rolling (130) Ox2 Location -8/Recycling Parts ------- > --- POWER (1) -------- Subdweller Power Source > --- PROPULSION (2) --- Subdweller Monowheel Subdweller Monowheel > --- UTILITY (2) ------ Huge Storage Unit Hardened Medium Armor Plating > --- WEAPON (2) ------- Subdweller Beam Cannon Improved Light Cannon > --- INVENTORY (25) --- Subdweller Power Source Meta Core Light Treads Light Treads Light Treads Light Treads Subdweller Monowheel Improved Heat Sink Structural Scanner Propulsion Shielding Improved Propulsion Shielding Tower Shield Makeshift Hacking Suite Subdweller Laser Subdweller Laser Subdweller Beam Cannon Improved Light Cannon Improved Light Cannon Improved Light Cannon Grenade Launcher Subdweller Shrapnel Launcher Subdweller Shrapnel Launcher Mining Laser Multitool Peak State ------------ > --- POWER ------------ Subdweller Power Source > --- PROPULSION ------- Subdweller Monowheel Subdweller Monowheel > --- UTILITY ---------- Huge Storage Unit Hardened Medium Armor Plating > --- WEAPON ----------- Subdweller Beam Cannon Improved Light Cannon > --- INVENTORY -------- Subdweller Power Source Meta Core Light Treads Light Treads Light Treads Light Treads Subdweller Monowheel Improved Heat Sink Structural Scanner Propulsion Shielding Improved Propulsion Shielding Tower Shield Makeshift Hacking Suite Subdweller Laser Subdweller Laser Subdweller Beam Cannon Improved Light Cannon Improved Light Cannon Improved Light Cannon Grenade Launcher Subdweller Shrapnel Launcher Subdweller Shrapnel Launcher Mining Laser Multitool [Rating: 21] Favorites ----------- Power Light Nuclear Core Engine Subdweller Power Source Power Core Light Nuclear Core Propulsion Light Treads Treads Light Treads Leg Aluminum Leg Wheel Subdweller Monowheel Utility Huge Storage Unit Device Improved Heat Sink Storage Huge Storage Unit Protection Light Armor Plating Weapon Medium Laser Energy Gun Medium Laser Energy Cannon Subdweller Beam Cannon Ballistic Gun Assault Rifle Ballistic Cannon Improved Light Cannon Launcher Subdweller Shrapnel Launcher Special Weapon Mining Laser Build | -11 -10 -10 -8 ------- Run | Yrd Mat Sub Rec Slots Evolved . | . . . . Power . | . . . . Propulsion . | . . . . Utility . | . . . . Weapon . | . . . . Parts Attached 34 | 1 11 18 4 Power 2 | . 1 1 . Engine 1 | . . 1 . Core 1 | . 1 . . Reactor . | . . . . Propulsion 12 | . 2 7 3 Treads 10 | . 2 7 1 Leg . | . . . . Wheel 2 | . . . 2 Hover . | . . . . Flight . | . . . . Utility 8 | 1 4 2 1 Device 5 | 1 3 1 . Storage 1 | . 1 . . Processor . | . . . . Hackware . | . . . . Protection 2 | . . 1 1 Artifact . | . . . . Weapon 12 | . 4 8 . Energy Gun 3 | . 2 1 . Energy Cannon 2 | . . 2 . Ballistic Gun 1 | . . 1 . Ballistic Cannon 2 | . . 2 . Launcher 3 | . 1 2 . Special Weapon 1 | . 1 . . Impact Weapon . | . . . . Slashing Weapon . | . . . . Piercing Weapon . | . . . . Special Melee Weapon . | . . . . Unidentified Prototypes . | . . . . Parts Lost 4 | . 1 3 . Power . | . . . . Propulsion . | . . . . Utility 3 | . 1 2 . Weapon 1 | . . 1 . Highest Loss Streak 2 | . 1 2 . To Critical Strikes . | . . . . Average Backups 21 | 7 17 24 24 Power 1 | 1 1 1 1 Propulsion 6 | 4 6 6 5 Utility 4 | . 4 5 5 Weapon 8 | 1 4 9 10 Tool/Special . | . . . . Unused Backups 25 | . 6 6 13 Power 3 | . . 2 1 Propulsion 8 | . 4 1 3 Utility 7 | . 2 1 4 Weapon 5 | . . 2 3 Tool/Special 2 | . . . 2 Average Slot Usage (%) 99 | . 99 100 100 Engine 6 | . 3 7 14 Core 7 | . 10 6 . Treads 27 | . 26 28 24 Device 12 | . 13 11 8 Storage 14 | . 14 14 14 Protection 1 | . . 2 6 Energy Gun 13 | . 26 8 . Energy Cannon 6 | . . 8 14 Ballistic Cannon 6 | . . 9 14 Peak Build Rating 21 | 8 14 19 21 Average Rating 14 | 6 11 15 18 On Entrance 10 | 6 8 12 17 Naked Turns . | . . . . Heaviest Build 105 | 14 91 102 105 Greatest Support 40 | 20 40 40 40 Greatest Overweight (x) 2 | . 2 2 2 Average Overweight (x) 1 | . 1 2 2 Largest Inventory Capacity 25 | 8 25 25 25 Average Capacity 24 | 8 24 25 25 Most Carried 25 | 8 25 25 25 Average Carried 22 | 7 17 24 24 Final Capacity 25 | 8 25 25 25 Final Carried 25 | 8 25 25 25 Class Distribution -------------------- 100% | Mutant Dominant Class ---------------- Mutant | -10/Materials Mutant | -10/Subcaves Mutant | -8/Recycling Resources | -11 -10 -10 -8 ----------- Run | Yrd Mat Sub Rec Matter Collected 814 | 200 228 381 5 Remotely . | . . . . Salvage Created 1093 | 24 527 492 50 Parts 75 | 7 30 34 4 Haulers Intercepted 1 | . 1 . . Recyclers Shooed . | . . . . Parts Field Recycled . | . . . . Retrieved Matter . | . . . . Parts Self-Destructed 18 | . . 18 . Prevented . | . . . . Kills | -11 -10 -10 -8 ------- Run | Yrd Mat Sub Rec Combat Hostiles Destroyed 32 | . 17 14 1 Guns 14 | . 12 2 . Cannons 6 | . . 5 1 AOE 11 | . 5 6 . Classes Destroyed 10 | 1 5 4 . Worker 1 | . 1 . . Tunneler 5 | 2 3 . . Hauler 1 | . 1 . . Turret 2 | . . 2 . Watcher 1 | . 1 . . Swarmer 13 | . 9 4 . Grunt 9 | . 8 1 . Sentry 2 | . . 1 1 Artisan 1 | . . 1 . Subdweller 8 | . . 8 . Best Kill Streak 5 | 1 5 5 1 Combat Bots Only 5 | . 5 4 1 Max Kills in Single Turn 3 | 1 1 3 1 Gunslinging . | . . . . Exploded 2 | . 1 2 . Melee . | . . . . Uniques/NPCs Destroyed . | . . . . Combat | -11 -10 -10 -8 -------- Run | Yrd Mat Sub Rec Hostile Shots Fired 148 | . 64 74 10 Missed 51 | . 25 25 1 Hits 97 | . 39 49 9 Projectile 97 | . 39 49 9 Critical Strikes 1 | . . 1 . Damage Taken 1331 | . 384 810 137 Core 261 | . 63 184 14 Absorbed by Shields . | . . . . Core Remaining (%) 100 | 100 . . . Volleys Fired 149 | 5 67 74 3 Largest 2 | 2 2 2 2 Hottest 140 | 90 100 140 113 Shots Fired 244 | 10 122 107 5 Gun 151 | 10 111 30 . Cannon 76 | . . 71 5 Launcher 13 | . 7 6 . Special 4 | . 4 . . Kinetic 29 | . . 27 2 Thermal 208 | 10 115 80 3 Explosive 7 | . 7 . . Electromagnetic . | . . . . Robot Hit Streak 17 | 5 12 17 5 Robot Miss Streak 4 | 4 4 3 1 Penetration Max . | . . . . Secondary Targets . | . . . . Shots Hit Robots 132 | 5 74 50 3 Core Hits 68 | 3 39 25 1 Critical Kills 1 | . . 1 . Critical Parts Destroyed . | . . . . Critical Strikes 14 | . 11 3 . Burn 13 | . 11 2 . Meltdown 1 | . . 1 . Melee Attacks . | . . . . Impact . | . . . . Slashing . | . . . . Piercing . | . . . . Sneak Attacks . | . . . . Combat Hostiles . | . . . . Follow-up Attacks . | . . . . Damage Inflicted 2959 | 61 1332 1492 74 Guns 1294 | 61 886 347 . Cannons 719 | . . 645 74 Explosions 941 | . 441 500 . Melee . | . . . . Ramming 5 | . 5 . . Kinetic 645 | . . 599 46 Thermal 1868 | 61 886 893 28 Explosive 441 | . 441 . . Electromagnetic . | . . . . Impact . | . . . . Slashing . | . . . . Piercing . | . . . . Highest Corruption . | . . . . Average Corruption . | . . . . Corruption Purged . | . . . . Corruption Blocked . | . . . . Overload Shots . | . . . . Overflow Damage 66 | . 13 53 . Projectiles 35 | . . 35 . Explosions 31 | . 13 18 . Melee . | . . . . Knockbacks 1 | . . 1 . Impact . | . . . . Kinetic 1 | . . 1 . Secondary . | . . . . Self-Inflicted Damage . | . . . . Shots . | . . . . Rammed 2 | . 2 . . Targets Rammed 2 | . 2 . . Kicked . | . . . . Crushed . | . . . . Highest Temperature 226 | 102 222 226 120 Average Temperature 52 | 49 42 67 55 Received Heat Transfer 420 | . 135 249 36 Siege Activations . | . . . . Martial Activations . | . . . . Shielding Activations . | . . . . Robots Disrupted . | . . . . Combat Hostiles . | . . . . Robots Corrupted . | . . . . Combat Hostiles . | . . . . Parts Fried . | . . . . Impact Corruptions . | . . . . Robots Melted 1 | . . 1 . Combat Hostiles 1 | . . 1 . Parts Melted 17 | . 13 4 . Heat Transferred 5043 | 161 3239 1606 37 Parts Sabotaged . | . . . . Parts Stolen . | . . . . Parts Stripped . | . . . . Power Chain Reactions . | . . . . Alert | -11 -10 -10 -8 ------- Run | Yrd Mat Sub Rec Maximum Alert Level . | . . . . Low Security (%) 100 | 100 100 . 100 Level 1 . | . . . . Level 2 . | . . . . Level 3 . | . . . . Level 4 . | . . . . Level 5 . | . . . . High Security . | . . . . Max Security . | . . . . Peak Influence 172 | 5 172 . 88 Initial 72 | . . . 72 Average 73 | 1 75 . 67 Influence Increases 941 | 10 615 220 96 Destroy 0b10 Robot/C 520 | . 340 160 20 Destroy 0b10 Robot/NC 40 | 10 30 . . Destroy Leader 74 | . 74 . . Successful Hack 18 | . 18 . . Select Force Hacks 90 | . 30 . 60 Disable Machine 75 | . 60 . 15 Destroy Structure 19 | . 18 . 1 Partial Spotted 15 | . 15 . . Lose Combat Pursuer 90 | . 30 60 . Influence Decreases 873 | 10 522 163 178 Entered New Map 123 | . . 45 78 Time Decay 740 | 10 512 118 100 Lost Part 10 | . 10 . . Squads Dispatched 3 | . 3 . . Investigation 2 | . 2 . . Extermination . | . . . . Reinforcement 1 | . 1 . . Assault . | . . . . Garrison . | . . . . Intercept . | . . . . Searches Triggered . | . . . . Construction Impeded . | . . . . Haulers Reinforced . | . . . . Active Scanning Responses . | . . . . Cargo Convoy Interrupts . | . . . . Stealth | -11 -10 -10 -8 --------- Run | Yrd Mat Sub Rec Distress Signals 4 | . 4 . . Communications Jammed . | . . . . Distress Signals . | . . . . Times Spotted 59 | . 38 19 2 Peak Tracking Total 7 | . 7 3 2 Tactical Retreats 5 | . 2 3 . Traps | -11 -10 -10 -8 ------- Run | Yrd Mat Sub Rec Traps Triggered 1 | . . 1 . Indirectly . | . . . . Trap Hack Attempts . | . . . . Triggered . | . . . . Disarmed . | . . . . Reprogrammed . | . . . . Reused . | . . . . Traps Extracted . | . . . . Installed . | . . . . Triggered . | . . . . Machines | -11 -10 -10 -8 ---------- Run | Yrd Mat Sub Rec Machines Disabled 10 | . 4 5 1 Max in Single Turn 3 | . 1 3 1 Machines Repaired . | . . . . Machines Dismantled . | . . . . Machines Sabotaged . | . . . . Overloaded Fab Kills . | . . . . Hacking | -11 -10 -10 -8 --------- Run | Yrd Mat Sub Rec Machines Accessed 13 | . 8 2 3 Terminals 7 | . 6 . 1 Fabricators . | . . . . Repair Stations . | . . . . Recycling Units 4 | . 2 . 2 Scanalyzers . | . . . . Garrison Access . | . . . . Total Hacks 43 | . 30 5 8 Successful 23 | . 15 5 3 Failed 19 | . 14 . 5 Catastrophic 2 | . 1 . 1 Database Lockouts 1 | . 1 . . Manual 30 | . 25 . 5 Terminals 25 | . 23 . 2 Fabricators . | . . . . Repair Stations . | . . . . Recycling Units 13 | . 7 . 6 Scanalyzers . | . . . . Garrison Access . | . . . . Terminal Hacks 11 | . 6 5 . Record 4 | . . 4 . Robot Schematic 1 | . 1 . . Prototype ID Bank 3 | . 3 . . Emergency Access Points 1 | . 1 . . Zone Layout 1 | . 1 . . Proto ID Catalog 1 | . . 1 . Fabricator Hacks . | . . . . Repair Station Hacks . | . . . . Recycling Unit Hacks 2 | . 1 . 1 Retrieve Components 2 | . 1 . 1 Scanalyzer . | . . . . Garrison Access Hacks . | . . . . Unauthorized Hacks 10 | . 8 . 2 Terminals 7 | . 7 . . Botnet 1 | . 1 . . Operators 1 | . 1 . . Skim 5 | . 5 . . Fabricators . | . . . . Repair Stations . | . . . . Recycling Units 3 | . 1 . 2 Tunnel 3 | . 1 . 2 Scanalyzers . | . . . . Garrison Access . | . . . . Data Cores Recovered . | . . . . Used . | . . . . Hacking Detections 10 | . 8 . 2 Full Trace Events 1 | . 1 . . Feedback Events . | . . . . Feedback Blocked . | . . . . Robot Schematics Acquired 1 | . 1 . . Robots Built . | . . . . Authchips . | . . . . Time . | . . . . Total Robot Build Rating . | . . . . Part Schematics Acquired . | . . . . Parts Built . | . . . . Authchips . | . . . . Time . | . . . . Total Part Build Rating . | . . . . Parts Repaired . | . . . . Time . | . . . . Parts Recycled . | . . . . Recycled Matter . | . . . . Retrieved Matter . | . . . . Retrieved Components 13 | . 10 . 3 Parts Scanalyzed . | . . . . Part Schematics Acquired . | . . . . Parts Damaged . | . . . . Bothacking | -11 -10 -10 -8 ------------ Run | Yrd Mat Sub Rec Used RIF Installer . | . . . . Robots Hacked . | . . . . Non-combat . | . . . . Combat . | . . . . Robot Hacks Applied . | . . . . Relay Couplers Released . | . . . . Fabnet Peak Effective % . | . . . . Robots Rewired . | . . . . Allies Hacked . | . . . . Hacks Repelled . | . . . . Allies | -11 -10 -10 -8 -------- Run | Yrd Mat Sub Rec Total Allies . | . . . . Largest Group . | . . . . Highest-Rated Group . | . . . . Highest-Rated Ally . | . . . . Total Orders . | . . . . Ally Attacks . | . . . . Total Damage . | . . . . Kills . | . . . . Allies Corrupted . | . . . . Allies Melted . | . . . . Intel | -11 -10 -10 -8 ------- Run | Yrd Mat Sub Rec Active Infowar (turns) 3044 | 2 285 2646 111 Sensors 1259 | . 2 1257 . Structural 1500 | . . 1389 111 Seismic 285 | 2 283 . . Robot Analysis Total . | . . . . Derelict Logs Recovered 1 | . . 1 . Drone Launches . | . . . . Drone Recoveries . | . . . . Exploration | -11 -10 -10 -8 ------------- Run | Yrd Mat Sub Rec Turns Passed 8073 | 65 2295 5508 205 Spaces Moved 2376 | 16 656 1636 68 Core . | . . . . Treads 2297 | . 611 1636 50 Legs 61 | 16 45 . . Wheels 18 | . . . 18 Hover . | . . . . Flight . | . . . . Fastest Speed 120 | 120 120 320 130 Average Speed 313 | 120 306 320 269 Slowest Speed 360 | 120 320 360 320 Overloaded Moves . | . . . . Propulsion Burnouts . | . . . . Robots Hopped . | . . . . Potential Cave-ins . | . . . . Cave-ins Triggered . | . . . . Exploration Rate (%) 50 | 3 82 93 23 Regions Visited 3 Branch Regions 2 Pre-discovered Areas 5 | . 2 1 2 Known Exits Taken 1 | . 1 . . Unknown Exits Taken 2 | 1 . 1 . Scrap Searched 4 | . . 4 . Spaces Dug 37 | . 2 34 1 Terrain Destroyed 112 | . 16 95 1 Melee . | . . . . Projectile 14 | . 2 11 1 AOE 98 | . 14 84 . Terrain Rammed . | . . . . Walls Destroyed . | . . . . Machines Disabled . | . . . . Actions | -11 -10 -10 -8 --------- Run | Yrd Mat Sub Rec Total 2738 | 51 804 1799 84 Wait 107 | 28 39 35 5 Move 2373 | 15 655 1635 68 Hop . | . . . . Pick Up 37 | 2 19 14 2 Fast Attach 5 | 1 1 3 . Attach 3 | . . 3 . Detach 1 | . . 1 . Swap 38 | . 16 18 4 Drop 23 | . 5 16 2 Fire 149 | 5 67 74 3 Melee . | . . . . Ram . | . . . . Kick . | . . . . Crush 2 | . 2 . . Escape Stasis . | . . . . Rewire . | . . . . Trap . | . . . . Miscellaneous . | . . . . Route ------- -11/Scrapyard -10/Materials (discovered 5 exits: *Mat x3 / Min / *Sub) -10/Subcaves (discovered 3 exits: *Mat x2 / *Rec) -8/Recycling History --------- Turn | Location | Event 13 | -11/Scrapyard | Discovered new exit (range 3) 66 | -11/Scrapyard | Entered Materials 312 | -10/Materials | Build established: Mutant 733 | -10/Materials | Discovered new exit (range 13) 881 | -10/Materials | Learned location of 2 exits from Subcaves 922 | -10/Materials | Identified exit to Mines 922 | -10/Materials | Identified exit to Materials 951 | -10/Materials | Learned location of 1 exit from Storage 972 | -10/Materials | Central database locked down 977 | -10/Materials | Learned location of 2 exits from Mines 994 | -10/Materials | Loaded intel: 12 trap records 1021 | -10/Materials | Identified exit to Subcaves 2361 | -10/Materials | Entered Subcaves 2362 | -10/Subcaves | Identified exit to Materials 2758 | -10/Subcaves | Disturbed a concealed Subdweller 3571 | -10/Subcaves | Visited Clippyterm 3581 | -10/Subcaves | Learned Research machine intel 4169 | -10/Subcaves | Visited 4L-MR0's lab 4200 | -10/Subcaves | Found Tower Shield 4517 | -10/Subcaves | Core integrity fell below 50% 4642 | -10/Subcaves | Learned location of Zion (-6) 4642 | -10/Subcaves | Met a Zionite searching for "candidates" 4841 | -10/Subcaves | A swath of the cavern ceiling suddenly collapsed 5810 | -10/Subcaves | Shifting Twisted Machinery released Sub. Machine Gun 5810 | -10/Subcaves | Shifting Twisted Machinery released Mak. Laser 6006 | -10/Subcaves | Shifting Twisted Machinery released Piercing Trap 6007 | -10/Subcaves | Shifting Twisted Machinery released Sub. Beam Cannon 6031 | -10/Subcaves | Shifting Twisted Machinery released Sub. Shrapnel Launcher 6032 | -10/Subcaves | Shifting Twisted Machinery released Sub. Monowheel 6173 | -10/Subcaves | Core integrity fell below 20% 6220 | -10/Subcaves | Found Meta Core 7569 | -10/Subcaves | Learned 2 Materials zone layouts 7819 | -10/Subcaves | Discovered new exit (range 13) 7869 | -10/Subcaves | Entered Recycling 8074 | -8/Recycling | Destroyed by Y-45 Defender with Heavy Assault Rifle Last Messages --------------- Particle Charger Hrd. Medium Armor Plating >>Force(Tunnel) DISCOVERED[-4/Extension] 07973_ Dropped Lgt. Treads. 07974_ Acquired Hrd. Medium Armor Plating. 07978_ Dropped Heat Sink. 07978_ R-06 Scavenger collects Lgt. Treads. 07979_ Acquired Imp. Propulsion Shielding. 07980_ R-06 Scavenger collects Heat Sink. 08003_ Y-45 Defender springs to life. 08015_ Connecting with Terminal... 08042_ Atomic Centrifuge disabled. 08042_ Y-45 Defender destroyed. 08051_ Acquired 5 matter. 08052_ U-05 Engineer builds a Wall. 08059_ R-06 Scavenger collects Hvy. Assault Rifle. 08062_ R-06 Scavenger collects Beam Rifle. 08063_ R-06 Scavenger collects Heat Sink. Map ----- +----------------------------------------------------+ | ????????????????????????????????????????????????? | | ????????????????????????????????????????????????? | | ????????????????????????????????????????????????? | | ????????????????????????????????????????????????? | | ????????????????????????????????????????????????? | | ????????????????????????????????????????????????? | | ????????????????????????????????????????????????? | | ????????????????????????????????????????????????? | | ????????????????????????????????????????????????? | | ????????????????????????????????????????????????? | | ????????????????????????????????????????????????? | | ????????????????????????????????????????????????? | | ????????????????? ??????????????????????????????? | | ??????????????? ??????????#####??????????????? | | ??????????????? ??????????#"""#??????????????? | | ???????????????? ?????###"Y"#####??????????? | | ????????????????? ### #??????????? | | ?????????????????# + #??????????? | | ?????????????????# ??????# % ###????????? | | ?????????????????# ?????# """%="" ""#????????? | | ?????????????????# ?????# """ """ T"#????????? | | ?????????????????# ????# """ """ ""#######??? | | ?????????????????# ????# #########??? | | ?????????????????# ???# ####"""##### | | ?????????????????# ########+########"Y"##### | | ?????????????????# @ Y | | ?????????????????+ ! | | ?????????????????# | | ?????????????????# ######+###### | | ?????????????????# # | | ?????????????????+ +??? ??????? | | ?????????????????#####== ## #### ####?? ??????? | | ?????????????????????#===?###??###???? ???????? | | ?????????????????????####???????????# ???????? | | ????????????????????????????????????#### ???????? | | ????????????????????????????????????#####???????? | | ????????????????????????????????????????????????? | | | | | | | | | | | | | | | | | | | | | | | | | | | +----------------------------------------------------+ Best States ------------- Heat Dissipation 39 Energy Generation 14 Energy Capacity 250 Matter Stores 300 Matter Capacity 300 Sight Range 16 Robot Scan Range 14 Terrain Scan Density 10 Armor Coverage 225 Evasion (%) 55 Recoil Reduction 2 Item Schematics ----------------- None Robot Schematics ------------------ M-13 Machinist | -10/Materials | Hacked Fabricated ------------ Nothing Repaired ---------- Nothing Alien Tech Used ----------------- None Achievements -------------- None Challenges ------------ None Game ------ Seed RefineryRelayReplicator Manual? 0 Play Time 00:25:55 Cumulative 455.3 hours Start 2025.06.18 @ 15:25:06 End 2025.06.18 @ 15:53:59 Sessions 1 Manual Loads 0 Difficulty Rogue Special Mode None Game No. 234 Rogue 171 Adventurer 63 Explorer 0 Win Type - Total 9 Types 8/0/0/1/0/0/0/0/0/0 Lore% 89 Gallery% 80 Achievement% 66 Wizard Run 0 Options --------- Layout 2 ASCII 0 Keyboard 1 Movement Numpad Keybinds 0 Fullscreen 2 Font 24/Terminus Map View 50x44 Zoom Use 0% Tactical HUD 1 Map Filters NONE Filters NONE Steam 1 RUN: 34d7f506-c12c-41ba-a1ef-0c1199854401